Cogmind - Beta 10.2 @@@ ROGUE MODE // 2020.12.29 @ 20:31:51 Player: SureStep Result: Self-destructed Performance ------------- Evolutions (1) 500 Regions Visited (2) 400 Robots Destroyed (53) 265 Value Destroyed (1196) 1196 Prototype IDs (6) 120 Alien Tech Used (0) 0 Bonus (0) 0 TOTAL SCORE: 2481 Bonus ------- None Cogmind --------- Core Integrity 244/400 Matter 300/300 Energy 424/650 System Corruption 0% Temperature Cool (0) Movement Hovering (116) Ox1 Location -9/Materials Parts ------- > --- POWER (1) -------- Ion Engine > --- PROPULSION (4) --- Hover Unit Improved Hover Unit > --- UTILITY (2) ------ Medium Storage Unit High-capacity Battery > --- WEAPON (2) ------- Improved EM Shotgun Light EM Pulse Cannon > --- INVENTORY (8) ---- Light Ion Engine Hover Unit Hover Unit High-capacity Battery (400) Armor Integrity Analyzer Improved EM Shotgun Improved EM Shotgun Peak State ------------ > --- POWER ------------ Ion Engine > --- PROPULSION ------- Improved Hover Unit Improved Hover Unit Improved Hover Unit Improved Hover Unit > --- UTILITY ---------- Medium Storage Unit High-capacity Battery > --- WEAPON ----------- Light EM Pulse Cannon Light EM Pulse Cannon > --- INVENTORY -------- Ion Engine Small Storage Unit High-capacity Battery Targeting Computer Light EM Pulse Cannon Light EM Pulse Cannon [Rating: 15] Favorites ----------- Power Ion Engine Engine Ion Engine Propulsion Improved Hover Unit Wheel Compact Wheel Hover Unit Improved Hover Unit Flight Unit VTOL Module Utility Medium Storage Unit Storage Medium Storage Unit Weapon Light EM Pulse Cannon Energy Gun EM Pulse Gun Energy Cannon Light EM Pulse Cannon Launcher Grenade Launcher Build | -11 -10 -9 ------- Run | Scr Mat Mat Slots Evolved 2 | . . 2 Power . | . . . Propulsion 2 | . . 2 Utility . | . . . Weapon . | . . . Parts Attached 28 | 6 11 11 Power 2 | 1 1 . Engine 2 | 1 1 . Core . | . . . Reactor . | . . . Propulsion 12 | 2 4 6 Treads . | . . . Leg . | . . . Wheel 3 | 2 1 . Hover 8 | . 2 6 Flight 1 | . 1 . Utility 4 | 1 3 . Device . | . . . Storage 4 | 1 3 . Processor . | . . . Hackware . | . . . Protection . | . . . Artifact . | . . . Weapon 10 | 2 3 5 Energy Gun 3 | 2 . 1 Energy Cannon 6 | . 2 4 Ballistic Gun . | . . . Ballistic Cannon . | . . . Launcher 1 | . 1 . Special Weapon . | . . . Impact Weapon . | . . . Slashing Weapon . | . . . Piercing Weapon . | . . . Special Melee Weapon . | . . . Unidentified Prototypes . | . . . Parts Lost 9 | . 1 8 Power . | . . . Propulsion 5 | . . 5 Utility . | . . . Weapon 4 | . 1 3 Highest Loss Streak 2 | . 1 2 Average Slot Usage (%) 99 | . 98 99 Engine 12 | . 14 11 Wheel 12 | . 25 . Hover 23 | . 2 43 Storage 24 | . 26 22 Energy Gun 2 | . 4 1 Energy Cannon 17 | . 15 20 Launcher 4 | . 8 . Naked Turns . | . . . Heaviest Build 25 | 13 25 25 Greatest Support 32 | 32 32 32 Greatest Overweight (x) 3 | . 3 1 Average Overweight (x) . | . . . Largest Inventory Capacity 8 | 6 8 8 Average Capacity 7 | 5 7 8 Most Carried 8 | 4 8 8 Average Carried 6 | 1 6 6 Final Capacity 8 | 6 8 8 Final Carried 8 | 1 8 7 Class Distribution -------------------- 100% | Mutant Dominant Class ---------------- Mutant | -10/Materials Mutant | -9/Materials Resources | -11 -10 -9 ----------- Run | Scr Mat Mat Matter Collected 595 | 260 235 100 Remotely . | . . . Salvage Created 1875 | 100 907 868 Parts 123 | 2 56 65 Haulers Intercepted 3 | . 2 1 Recyclers Shooed 3 | . 2 1 Parts Field Recycled . | . . . Retrieved Matter . | . . . Parts Self-Destructed . | . . . Prevented . | . . . Kills | -11 -10 -9 ------- Run | Scr Mat Mat Combat Hostiles Destroyed 34 | . 17 17 Cannons 23 | . 10 13 AOE 8 | . 6 2 Classes Destroyed 9 | 1 6 2 Worker 2 | . 2 . Builder 1 | . . 1 Hauler 3 | . 2 1 Recycler 4 | 1 2 1 Operator 1 | . 1 . Watcher 8 | . 3 5 Swarmer 10 | . 3 7 Grunt 21 | . 14 7 Sentry 3 | . . 3 Best Kill Streak 5 | 1 4 5 Combat Bots Only 4 | . 3 4 Max Kills in Single Turn 2 | 1 2 2 Gunslinging . | . . . Exploded 2 | . 2 2 Melee . | . . . Uniques/NPCs Destroyed . | . . . Combat | -11 -10 -9 -------- Run | Scr Mat Mat Damage Taken 983 | . 256 727 Core 205 | . 49 156 Absorbed by Shields . | . . . Core Remaining (%) 90 | 100 80 . Volleys Fired 125 | 5 70 50 Largest 2 | 2 2 2 Hottest 112 | 90 112 112 Shots Fired 197 | 10 94 93 Gun 49 | 10 32 7 Cannon 135 | . 49 86 Launcher 13 | . 13 . Special . | . . . Kinetic . | . . . Thermal 9 | 5 4 . Explosive 13 | . 13 . Electromagnetic 175 | 5 77 93 Robot Hit Streak 10 | 4 10 6 Robot Miss Streak 6 | 2 6 3 Penetration Max . | . . . Secondary Targets . | . . . Shots Hit Robots 119 | 6 58 55 Core Hits 60 | 1 33 26 Critical Hits 1 | . . 1 Critical Kills . | . . . Critical Parts Destroyed . | . . . Melee Attacks . | . . . Impact . | . . . Slashing . | . . . Piercing . | . . . Sneak Attacks . | . . . Combat Hostiles . | . . . Follow-up Attacks . | . . . Damage Inflicted 3172 | 78 1752 1342 Guns 440 | 78 279 83 Cannons 1959 | . 852 1107 Explosions 773 | . 621 152 Melee . | . . . Ramming . | . . . Kinetic . | . . . Thermal 287 | 26 109 152 Explosive 537 | . 537 . Electromagnetic 2348 | 52 1106 1190 Impact . | . . . Slashing . | . . . Piercing . | . . . Highest Corruption . | . . . Average Corruption . | . . . Corruption Purged . | . . . Overload Shots . | . . . Overflow Damage 48 | . 38 10 Projectiles 46 | . 36 10 Explosions 2 | . 2 . Melee . | . . . Knockbacks . | . . . Impact . | . . . Kinetic . | . . . Secondary . | . . . Self-Inflicted Damage 39 | . 39 . Shots 1 | . 1 . Rammed . | . . . Targets Rammed . | . . . Kicked . | . . . Crushed . | . . . Highest Temperature 368 | 170 120 368 Average Temperature 82 | 93 37 106 Received Heat Transfer 291 | . 93 198 Effects 3 | . . 3 Shutdowns 1 | . . 1 Interference 2 | . . 2 Siege Activations . | . . . Robots Corrupted 4 | . 2 2 Combat Hostiles 3 | . 1 2 Parts Fried 12 | . 2 10 Impact Corruptions . | . . . Robots Melted . | . . . Combat Hostiles . | . . . Parts Melted . | . . . Heat Transferred 498 | 74 224 200 Parts Sabotaged . | . . . Parts Stolen . | . . . Parts Stripped . | . . . Power Chain Reactions 4 | . 2 2 Missiles Intercepted . | . . . Alert | -11 -10 -9 ------- Run | Scr Mat Mat Peak Influence 416 | 5 345 416 Initial 98 | . 3 98 Average 195 | 1 141 252 Maximum Alert Level 2 | . 1 2 Low Security (%) 40 | 100 65 15 Level 1 58 | . 34 83 Level 2 . | . . . Level 3 . | . . . Level 4 . | . . . Level 5 . | . . . High Security . | . . . Max Security . | . . . Squads Dispatched 10 | . 5 5 Investigation 8 | . 3 5 Extermination . | . . . Reinforcement 2 | . 2 . Assault . | . . . Garrison . | . . . Intercept . | . . . Construction Impeded . | . . . Haulers Reinforced . | . . . Stealth | -11 -10 -9 --------- Run | Scr Mat Mat Distress Signals 2 | . 1 1 Communications Jammed . | . . . Distress Signals . | . . . Times Spotted 65 | . 28 37 Peak Tracking Total 6 | . 3 6 Tactical Retreats 9 | . 3 6 Traps | -11 -10 -9 ------- Run | Scr Mat Mat Traps Triggered 1 | . 1 . Indirectly . | . . . Trap Hack Attempts . | . . . Triggered . | . . . Disarmed 6 | . 6 . Reprogrammed . | . . . Reused . | . . . Traps Extracted . | . . . Installed . | . . . Triggered . | . . . Machines | -11 -10 -9 ---------- Run | Scr Mat Mat Machines Disabled 4 | . 2 2 Max in Single Turn 1 | . 1 1 Machines Sabotaged . | . . . Garrisons Compromised . | . . . Overloaded Fab Kills . | . . . Fab Network Shutdowns . | . . . Hacking | -11 -10 -9 --------- Run | Scr Mat Mat Machines Accessed 15 | . 6 9 Terminals 12 | . 5 7 Fabricators . | . . . Repair Stations 1 | . 1 . Recycling Units . | . . . Scanalyzers 2 | . . 2 Garrison Access . | . . . Total Hacks 47 | . 15 32 Successful 22 | . 5 17 Failed 25 | . 10 15 Catastrophic 2 | . 1 1 Database Lockouts . | . . . Manual . | . . . Terminals 33 | . 11 22 Fabricators . | . . . Repair Stations 4 | . 4 . Recycling Units . | . . . Scanalyzers 10 | . . 10 Garrison Access . | . . . Terminal Hacks 13 | . 4 9 Prototype ID Bank 2 | . . 2 Terminal Index 1 | . . 1 Locate Traps 4 | . 2 2 Disarm Traps 1 | . 1 . Dispatch Records 1 | . . 1 Recall Investigation 1 | . . 1 Hauler Manifests 2 | . . 2 Zone Layout 1 | . 1 . Fabricator Hacks . | . . . Repair Station Hacks 1 | . 1 . Scan Component 1 | . 1 . Recycling Unit Hacks . | . . . Scanalyzer 8 | . . 8 Insert Component 5 | . . 5 Analyze 3 | . . 3 Garrison Access Hacks . | . . . Unauthorized Hacks . | . . . Terminals . | . . . Fabricators . | . . . Repair Stations . | . . . Recycling Units . | . . . Scanalyzers . | . . . Garrison Access . | . . . Data Cores Recovered . | . . . Used . | . . . Hacking Detections 14 | . 5 9 Full Trace Events 11 | . 3 8 Feedback Events . | . . . Feedback Blocked . | . . . Robot Schematics Acquired . | . . . Robots Built . | . . . Matter . | . . . Time . | . . . Total Robot Build Rating . | . . . Part Schematics Acquired 3 | . . 3 Parts Built . | . . . Matter . | . . . Time . | . . . Total Part Build Rating . | . . . Parts Repaired . | . . . Time . | . . . Parts Recycled . | . . . Recycled Matter . | . . . Retrieved Matter . | . . . Retrieved Components . | . . . Parts Scanalyzed 4 | . . 4 Part Schematics Acquired 3 | . . 3 Parts Damaged . | . . . Bothacking | -11 -10 -9 ------------ Run | Scr Mat Mat Used RIF Installer . | . . . Robots Hacked . | . . . Non-combat . | . . . Combat . | . . . Robot Hacks Applied . | . . . Relay Couplers Released . | . . . Robots Rewired . | . . . Allies Hacked . | . . . Hacks Repelled . | . . . Allies | -11 -10 -9 -------- Run | Scr Mat Mat Total Allies . | . . . Largest Group . | . . . Highest-Rated Group . | . . . Highest-Rated Ally . | . . . Total Orders . | . . . Ally Attacks . | . . . Total Damage . | . . . Kills . | . . . Allies Corrupted . | . . . Allies Melted . | . . . Intel | -11 -10 -9 ------- Run | Scr Mat Mat Robot Analysis Total . | . . . Derelict Logs Recovered . | . . . Drone Launches . | . . . Drone Recoveries . | . . . Exploration | -11 -10 -9 ------------- Run | Scr Mat Mat Turns Passed 3747 | 68 1763 1916 Spaces Moved 2871 | 45 1280 1546 Core 8 | 8 . . Treads . | . . . Legs . | . . . Wheels 1209 | 37 1172 . Hover 1654 | . 108 1546 Flight . | . . . Fastest Speed 48 | 50 100 48 Average Speed 72 | 91 101 48 Slowest Speed 240 | 100 240 116 Overloaded Moves . | . . . Propulsion Burnouts . | . . . Robots Hopped . | . . . Cave-ins Triggered . | . . . Exploration Rate (%) 52 | 3 99 55 Regions Visited 2 Branch Regions . Pre-discovered Areas . | . . . Known Exits Taken . | . . . Unknown Exits Taken 2 | 1 1 . Scrap Searched . | . . . Spaces Dug . | . . . Terrain Destroyed 90 | . 83 7 Melee . | . . . Projectile . | . . . AOE 90 | . 83 7 Terrain Rammed . | . . . Walls Destroyed . | . . . Machines Disabled . | . . . Actions | -11 -10 -9 --------- Run | Scr Mat Mat Total 4345 | 62 1661 2622 Wait 1258 | . 259 999 Move 2869 | 44 1279 1546 Hop . | . . . Pick Up 38 | 7 21 10 Fast Attach . | . . . Attach 28 | 6 11 11 Detach 12 | . 9 3 Swap . | . . . Drop 15 | . 12 3 Fire 125 | 5 70 50 Melee . | . . . Ram . | . . . Kick . | . . . Crush . | . . . Escape Stasis . | . . . Rewire . | . . . Trap . | . . . Miscellaneous . | . . . Route ------- -11/Scrapyard -10/Materials (discovered 4 exits: *Mat x3 / [*Min]) -9/Materials (discovered 2 exits: [*Mat] / [*Min]) History --------- Turn | Location | Event 5 | -11/Scrapyard | Discovered new exit (range 16) 69 | -11/Scrapyard | Entered Materials 301 | -10/Materials | Build established: Mutant 408 | -10/Materials | Discovered new exit (range 10) 923 | -10/Materials | Discovered new exit (range 11) 1022 | -10/Materials | Discovered new exit (range 12) 1089 | -10/Materials | Discovered new exit (range 11) 1832 | -10/Materials | Entered another Materials area 1832 | -9/Materials | Evolved 2 slots: Propulsion x2 2383 | -9/Materials | Discovered new exit (range 9) 2492 | -9/Materials | Discovered new exit (range 15) 3748 | -9/Materials | Self-destructed Last Messages --------------- Acquired 20 matter. K-01 Serf cleans the Electrolysis Chamber. Y-45 Defender suffers critical hit. Heat Sink fried. Y-45 Defender destroyed. Dropped Targeting Computer. Acquired Armor Integrity Analyzer. Acquired Hover Unit. Acquired Imp. EM Shotgun. Chain reaction triggered in Ion Engine. G-34 Mercenary destroyed. K-01 Serf collects debris. U-05 Engineer lays Concrete. Dropped Ion Engine. Hover Unit destroyed. Chain reaction triggered in Lgt. Ion Engine. S-10 Pest destroyed. Destroyed Flight Unit. Imp. Hover Unit destroyed. U-05 Engineer lays Concrete. Map ----- +----------------------------------------------------+ | ?????????????????# #???????## ############## | | ?????????????????# #????????# #?# # | | ?????????????????# #????????# #?# # | | ?????????????????# #????????# #?# + T | | ?????????????????# #????????# #?# """ """ # | | ?????????????????+ ########## ### """ """ # | | ?????????????????# ## """ """ ## | | ?????????????????# #? ## | | ?????????????????# ## ## | | ?????????????????############### ############# | | ???????????????????????????????# #???????????# | | ???????????????????????????????# #???????????# | | ???????????????????????????????# %############# | | ???????????????????????????????# % | | ???????????????????????????????# | | ???????????????????????????????#* % [ T | | ???????????????????????????????#% %######## | | ???????????????????????????????# #??????# | | ??????????????????????#????????# %######## =! | | ??????????????????????# ???????# # # = | | ??????????????????????# ???????# # # | | ??????????????????????# ???????# # % + | | ?????????????????????##s#??????# # #%##+##+ | | ?????????????????????#;s[##+##?# # ! # ## | | ?????????????????????#;%= #?# # # ## | | ?????????????????????#;[u@ #?# ######## ## | | ?????????????????????## #?# ########+## | | ??????????????????????# #?# ## # | | ??????????????????????# ###% ## """ # | | ??????????????????????# ## # """ # | | ??????????????????????# # """ ##### | | ??????????????????????# + [ #??? | | ??????????????????????# # """ #??? | | ??????????????????????# # # """ ####/ | | ??????????????????????# ## ## """ # ! | | ??????????????????????# ## ## # | | ??????????????????????# ## ########### | | ??????????????????????# ## #?????????# " | | ??????????????????????# ## ########### "" | | ??????????????????????# ## # "" | | ??????????????????????# ## + "" | | ??????????????????????# ## # " | | ??????????????????????# ## #########+# "" | | ??????????????????????#+###+#### # # "" | | ???????????????????????????????# # + "" | | ???????????????????????????????# # # " | | ???????????????????????????????# + # | | ???????????????????????????????# # ##### | | ???????????????????????????????# # #???? | | ???????????????????????????????# # #???? | +----------------------------------------------------+ Best States ------------- Heat Dissipation 28 Energy Generation 10 Energy Capacity 650 Matter Stores 300 Matter Capacity 300 Sight Range 16 Terrain Scan Density 10 Evasion (%) 55 Item Schematics ----------------- Imp. Hover Unit | -9/Materials | Scanalyzed Lgt. EM Pulse Cannon | -9/Materials | Scanalyzed Hcp. Battery | -9/Materials | Scanalyzed Robot Schematics ------------------ None Fabricated ------------ Nothing Alien Tech Used ----------------- None Achievements -------------- None Challenges ------------ None Game ------ Seed FocalMiningMachine Manual? 0 Play Time 00:59:24 Cumulative 30.1 hours Start 2020.12.28 @ 22:30:54 End 2020.12.29 @ 20:31:51 Sessions 3 Manual Loads 0 Difficulty Rogue Special Mode None Game No. 38 Rogue 38 Adventurer 0 Explorer 0 Win Type - Total 0 Types 0/0/0/0/0/0/0/0/0 Lore% 12 Gallery% 17 Achievement% 15 Wizard Run 0 Options --------- ASCII 0 Keyboard 0 Movement Mouse Keybinds 0 Fullscreen 1 Font 18/SmallcapsGlow Map View 76x50 Tactical HUD 0 Map Filters NONE Filters NONE Steam 1 RUN: 945a699a-6e96-4ffb-aec1-8c18c2db45a5